Cogmind - Beta 14 @@@ ROGUE MODE // 2024.10.31 @ 22:43:13 Player: Enzo Result: Self-destructed Performance ------------- Evolutions (2) 1000 Regions Visited (7) 1400 Robots Destroyed (85) 425 Value Destroyed (2258) 2258 Prototype IDs (25) 500 Alien Tech Used (0) 0 Bonus (1597) 1597 TOTAL SCORE: 7180 Bonus ------- High Alert Combat Kills 106 Follower Combat Kills 68 Entered Garrisons 200 Used RIF Installer 1000 Aligned with FarCom 300 Friendly Fire -77 Cogmind --------- Core Integrity 410/550 Matter 290/300 Energy 290/290 System Corruption 0% Temperature Cool (0) Movement Treading (158) Location -8/Materials Parts ------- > --- POWER (1) -------- Improved Deuterium Engine > --- PROPULSION (3) --- Armored Treads Advanced Treads Medium Treads > --- UTILITY (3) ------ High-capacity Storage Unit Improved Terrain Scanner Improved Terrain Scan Processor > --- WEAPON (4) ------- XL Autogun Subcomponent XL Autogun Subcomponent XL Autogun Subcomponent XL Autogun Subcomponent > --- INVENTORY (20) --- Light Nuclear Core Armored Treads Advanced Treads Gravmag System Gravmag System Gravmag System Gravmag System Advanced Heat Sink Coolant Injector Improved Signal Interpreter Seismic Detector Relay Coupler [NC] (27) Relay Coupler [Grunt] (31) Relay Coupler [Grunt] (22) Recalibrator Advanced Assault Cannon Advanced Assault Cannon Advanced Assault Cannon Grenade Launcher Heavy Missile Launcher Peak State ------------ > --- POWER ------------ Improved Deuterium Engine > --- PROPULSION ------- Armored Treads Advanced Treads Medium Treads > --- UTILITY ---------- Advanced Heat Sink High-capacity Storage Unit Improved Terrain Scan Processor > --- WEAPON ----------- XL Autogun Array > --- INVENTORY -------- Light Nuclear Core Armored Treads Advanced Treads Gravmag System Gravmag System Gravmag System Gravmag System Coolant Injector Improved Signal Interpreter Improved Terrain Scanner Seismic Detector Recalibrator Advanced Beam Cannon Plasma Cannon Assault Cannon Grenade Launcher Heavy Missile Launcher [Rating: 64] Favorites ----------- Power Ion Engine Engine Ion Engine Power Core Light Nuclear Core Propulsion Compact Wheel Treads Armored Treads Leg Carbon-fiber Leg Wheel Compact Wheel Utility High-capacity Storage Unit Device Improved Terrain Scanner Storage High-capacity Storage Unit Processor Improved Terrain Scan Processor Hackware Hacking Suite Weapon XL Autogun Subcomponent Energy Gun Particle Gun Energy Cannon Plasma Cannon Ballistic Gun XL Autogun Subcomponent Launcher Grenade Launcher Build | -11 -10 -10 -10 -9 -8 -8 -8 ------- Run | Yrd Mat Min Exi Min Mat Gar Mat Slots Evolved 4 | . . . . . 4 . . Power . | . . . . . . . . Propulsion 1 | . . . . . 1 . . Utility 1 | . . . . . 1 . . Weapon 2 | . . . . . 2 . . Parts Attached 57 | 8 7 6 1 2 27 5 1 Power 7 | 1 3 . . 1 2 . . Engine 6 | 1 3 . . 1 1 . . Core 1 | . . . . . 1 . . Reactor . | . . . . . . . . Propulsion 19 | 2 1 1 . . 15 . . Treads 6 | . . . . . 6 . . Leg 3 | . . . . . 3 . . Wheel 10 | 2 1 1 . . 6 . . Hover . | . . . . . . . . Flight . | . . . . . . . . Utility 14 | 2 1 1 1 . 7 1 1 Device 9 | 1 . 1 . . 5 1 1 Storage 2 | 1 . . 1 . . . . Processor 2 | . . . . . 2 . . Hackware 1 | . 1 . . . . . . Protection . | . . . . . . . . Artifact . | . . . . . . . . Weapon 17 | 3 2 4 . 1 3 4 . Energy Gun 4 | 2 2 . . . . . . Energy Cannon 2 | . . . . 1 1 . . Ballistic Gun 10 | 1 . 3 . . 2 4 . Ballistic Cannon . | . . . . . . . . Launcher 1 | . . 1 . . . . . Special Weapon . | . . . . . . . . Impact Weapon . | . . . . . . . . Slashing Weapon . | . . . . . . . . Piercing Weapon . | . . . . . . . . Special Melee Weapon . | . . . . . . . . Unidentified Prototypes 2 | . . . . . 1 1 . Parts Lost 5 | . 1 3 . . 1 . . Power . | . . . . . . . . Propulsion 2 | . . 1 . . 1 . . Utility . | . . . . . . . . Weapon 3 | . 1 2 . . . . . Highest Loss Streak 2 | . 1 2 . . 1 . . To Critical Strikes . | . . . . . . . . Average Slot Usage (%) 86 | . 100 93 100 100 71 86 100 Engine 9 | . 14 14 14 14 3 9 9 Core 1 | . . . . . 5 . . Treads 11 | . . . . . 11 27 27 Wheel 14 | . 28 24 28 28 12 . . Device 7 | . . 9 14 14 9 9 9 Storage 10 | . 14 14 14 14 9 9 9 Processor 5 | . . . . . 8 9 9 Hackware 3 | . 13 4 . . . . . Energy Gun 2 | . 14 1 . . . . . Ballistic Gun 14 | . 14 13 14 . 9 22 36 Launcher 2 | . . 10 14 14 . . . Peak Build Rating 64 | 8 11 11 13 18 63 64 53 Average Rating 38 | 5 10 9 11 16 56 57 52 On Entrance 21 | . 8 11 9 13 17 62 53 Naked Turns . | . . . . . . . . Heaviest Build 66 | 14 15 15 50 56 66 66 63 Greatest Support 70 | 26 26 26 26 26 70 70 70 Greatest Overweight (x) 3 | . . . 1 2 3 . . Average Overweight (x) . | . . . . 1 . . . Largest Inventory Capacity 20 | 8 8 8 20 20 20 20 20 Average Capacity 15 | 7 8 8 9 20 20 20 20 Most Carried 20 | 8 8 8 8 14 20 20 20 Average Carried 13 | 3 7 7 7 12 15 18 20 Final Capacity 20 | 8 8 8 20 20 20 20 20 Final Carried 20 | 8 8 7 8 13 17 20 20 Class Distribution -------------------- 46% | Skirmisher 35% | Mutant 12% | Scavenger-Skirmisher 4% | Commander-Skirmisher Dominant Class ---------------- Mutant | -10/Materials Mutant | -10/Mines Mutant | -10/Exiles Skirmisher | -9/Mines Skirmisher | -8/Materials Skirmisher | -8/Garrison Skirmisher | -8/Materials Resources | -11 -10 -10 -10 -9 -8 -8 -8 ----------- Run | Yrd Mat Min Exi Min Mat Gar Mat Matter Collected 2427 | 276 207 140 . 50 1320 434 . Remotely . | . . . . . . . . Salvage Created 2852 | 65 469 211 . . 1604 503 . Parts 194 | 6 26 14 . . 116 32 . Haulers Intercepted 5 | . 2 . . . 3 . . Recyclers Shooed 1 | . . 1 . . . . . Parts Field Recycled . | . . . . . . . . Retrieved Matter . | . . . . . . . . Parts Self-Destructed . | . . . . . . . . Prevented . | . . . . . . . . Kills | -11 -10 -10 -10 -9 -8 -8 -8 ------- Run | Yrd Mat Min Exi Min Mat Gar Mat Combat Hostiles Destroyed 57 | . 7 9 . . 25 16 . Guns 53 | . 7 5 . . 25 16 . AOE 4 | . . 4 . . . . . Classes Destroyed 12 | 2 4 2 . . 4 . . Worker 5 | . . 1 . . 4 . . Builder 3 | . . . . . 3 . . Tunneler 1 | 1 . . . . . . . Hauler 5 | . 2 . . . 3 . . Recycler 3 | 1 . 1 . . 1 . . Operator 2 | . 1 . . . 1 . . Watcher 9 | . 3 . . . 5 1 . Swarmer 24 | . . 7 . . 7 10 . Grunt 25 | . 7 2 . . 12 4 . Sentry 5 | . . . . . 3 2 . Specialist 2 | . . . . . 2 . . Heavy 1 | . . . . . 1 . . Best Kill Streak 8 | 1 2 5 . . 8 7 . Combat Bots Only 8 | . 2 5 . . 8 7 . Max Kills in Single Turn 2 | 1 1 2 . . 2 2 . Gunslinging . | . . . . . . . . Exploded 1 | . . 1 . . . . . Melee . | . . . . . . . . Uniques/NPCs Destroyed . | . . . . . . . . Combat | -11 -10 -10 -10 -9 -8 -8 -8 -------- Run | Yrd Mat Min Exi Min Mat Gar Mat Hostile Shots Fired 157 | . 23 60 . . 40 34 . Missed 44 | . 7 21 . . 7 9 . Damage Taken 1423 | . 224 346 . . 498 355 . Core 261 | . 17 104 . . 68 72 . Absorbed by Shields . | . . . . . . . . Regen/Repaired (Parts) 23 | . . . . . 23 . . Core Remaining (%) 75 | 100 . . . 51 . . . Volleys Fired 185 | 2 45 34 . 3 70 31 . Largest 4 | 2 2 2 . 1 1 4 . Hottest 85 | 60 85 85 . 80 60 80 . Shots Fired 278 | 3 85 45 . 3 70 72 . Gun 268 | 3 85 38 . . 70 72 . Cannon 3 | . . . . 3 . . . Launcher 7 | . . 7 . . . . . Special . | . . . . . . . . Kinetic 215 | 1 45 27 . . 70 72 . Thermal 49 | 1 34 11 . 3 . . . Explosive 7 | . . 7 . . . . . Electromagnetic 7 | 1 6 . . . . . . Robot Hit Streak 22 | 3 8 19 . 22 9 8 . Robot Miss Streak 9 | . 3 7 . . 9 6 . Penetration Max . | . . . . . . . . Secondary Targets 1 | . . 1 . . . . . Max Gunslinging Chain 1 | . . 1 . . . . . Shots Hit Robots 182 | 3 50 28 . 3 63 35 . Core Hits 128 | 2 25 16 . . 59 26 . Critical Kills . | . . . . . . . . Critical Parts Destroyed . | . . . . . . . . Critical Strikes 1 | . 1 . . . . . . Burn 1 | . 1 . . . . . . Melee Attacks . | . . . . . . . . Impact . | . . . . . . . . Slashing . | . . . . . . . . Piercing . | . . . . . . . . Sneak Attacks . | . . . . . . . . Combat Hostiles . | . . . . . . . . Follow-up Attacks . | . . . . . . . . Damage Inflicted 6082 | 36 676 499 . 77 3660 1134 . Guns 5717 | 36 676 211 . . 3660 1134 . Cannons 77 | . . . . 77 . . . Explosions 288 | . . 288 . . . . . Melee . | . . . . . . . . Ramming . | . . . . . . . . Kinetic 5319 | 10 351 164 . . 3660 1134 . Thermal 418 | 11 283 47 . 77 . . . Explosive 288 | . . 288 . . . . . Electromagnetic 57 | 15 42 . . . . . . Impact . | . . . . . . . . Slashing . | . . . . . . . . Piercing . | . . . . . . . . Highest Corruption . | . . . . . . . . Average Corruption . | . . . . . . . . Corruption Purged . | . . . . . . . . Corruption Blocked . | . . . . . . . . Overload Shots . | . . . . . . . . Overflow Damage . | . . . . . . . . Projectiles . | . . . . . . . . Explosions . | . . . . . . . . Melee . | . . . . . . . . Knockbacks . | . . . . . . . . Impact . | . . . . . . . . Kinetic . | . . . . . . . . Secondary . | . . . . . . . . Self-Inflicted Damage . | . . . . . . . . Shots . | . . . . . . . . Rammed . | . . . . . . . . Targets Rammed . | . . . . . . . . Kicked . | . . . . . . . . Crushed . | . . . . . . . . Highest Temperature 315 | . 138 216 . 80 315 107 . Average Temperature 70 | . 40 81 . 40 97 43 . Received Heat Transfer 528 | . 123 63 . . 189 153 . Siege Activations . | . . . . . . . . Robots Corrupted . | . . . . . . . . Combat Hostiles . | . . . . . . . . Parts Fried . | . . . . . . . . Impact Corruptions . | . . . . . . . . Robots Melted . | . . . . . . . . Combat Hostiles . | . . . . . . . . Parts Melted . | . . . . . . . . Heat Transferred 1041 | 25 755 111 . 150 . . . Parts Sabotaged . | . . . . . . . . Parts Stolen . | . . . . . . . . Parts Stripped . | . . . . . . . . Power Chain Reactions . | . . . . . . . . Alert | -11 -10 -10 -10 -9 -8 -8 -8 ------- Run | Yrd Mat Min Exi Min Mat Gar Mat Peak Influence 772 | 10 204 274 . . 510 772 371 Initial 371 | . 6 18 . . . 218 371 Average 264 | 5 55 203 . . 221 564 371 Maximum Alert Level 3 | . 1 1 . . 2 3 1 Low Security (%) 46 | 100 96 30 . 100 48 . . Level 1 28 | . 3 69 . . 35 27 100 Level 2 10 | . . . . . 15 20 . Level 3 13 | . . . . . . 52 . Level 4 . | . . . . . . . . Level 5 . | . . . . . . . . High Security . | . . . . . . . . Max Security . | . . . . . . . . Squads Dispatched 5 | . 1 . . 1 3 . . Investigation 2 | . 1 . . 1 . . . Extermination . | . . . . . . . . Reinforcement 3 | . . . . . 3 . . Assault . | . . . . . . . . Garrison . | . . . . . . . . Intercept . | . . . . . . . . Searches Triggered . | . . . . . . . . Construction Impeded 1 | . . . . . 1 . . Haulers Reinforced . | . . . . . . . . Active Scanning Responses . | . . . . . . . . Cargo Convoy Interrupts . | . . . . . . . . Stealth | -11 -10 -10 -10 -9 -8 -8 -8 --------- Run | Yrd Mat Min Exi Min Mat Gar Mat Distress Signals 3 | . . . . . 3 . . Communications Jammed . | . . . . . . . . Distress Signals . | . . . . . . . . Times Spotted 83 | . 13 11 . . 38 21 . Peak Tracking Total 7 | . 2 3 . . 4 7 . Tactical Retreats 4 | . 1 1 . . 1 1 . Traps | -11 -10 -10 -10 -9 -8 -8 -8 ------- Run | Yrd Mat Min Exi Min Mat Gar Mat Traps Triggered 10 | . 3 . . . . 7 . Indirectly . | . . . . . . . . Trap Hack Attempts . | . . . . . . . . Triggered . | . . . . . . . . Disarmed . | . . . . . . . . Reprogrammed . | . . . . . . . . Reused . | . . . . . . . . Traps Extracted . | . . . . . . . . Installed . | . . . . . . . . Triggered . | . . . . . . . . Machines | -11 -10 -10 -10 -9 -8 -8 -8 ---------- Run | Yrd Mat Min Exi Min Mat Gar Mat Machines Disabled 3 | . . 1 . . 1 1 . Max in Single Turn 1 | . . 1 . . 1 1 . Garrison Relay 1 | . . . . . . 1 . Machines Repaired . | . . . . . . . . Machines Dismantled . | . . . . . . . . Machines Sabotaged . | . . . . . . . . Overloaded Fab Kills . | . . . . . . . . Hacking | -11 -10 -10 -10 -9 -8 -8 -8 --------- Run | Yrd Mat Min Exi Min Mat Gar Mat Machines Accessed 24 | . 8 . 2 1 9 3 1 Terminals 19 | . 8 . . . 7 3 1 Fabricators . | . . . . . . . . Repair Stations 1 | . . . . . 1 . . Recycling Units . | . . . . . . . . Scanalyzers . | . . . . . . . . Garrison Access 1 | . . . . . 1 . . Total Hacks 74 | . 25 . 13 1 26 6 3 Successful 50 | . 14 . 13 1 18 2 2 Failed 23 | . 11 . . . 7 4 1 Catastrophic 2 | . . . . . 2 . . Database Lockouts 1 | . . . . . 1 . . Manual 49 | . 25 . 1 . 20 . 3 Terminals 57 | . 25 . . . 23 6 3 Fabricators . | . . . . . . . . Repair Stations 2 | . . . . . 2 . . Recycling Units . | . . . . . . . . Scanalyzers . | . . . . . . . . Garrison Access 1 | . . . . . 1 . . Terminal Hacks 33 | . 9 . 13 1 7 2 1 Record 13 | . 1 . 12 . . . . Robot Schematic 1 | . 1 . . . . . . Robot Analysis 4 | . 3 . . . 1 . . Open Door 1 | . . . . 1 . . . Branch Access Points 4 | . 1 . . . 2 . 1 Emergency Access Points 1 | . . . . . . 1 . Terminal Index 1 | . 1 . . . . . . Alert Level 2 | . . . . . 2 . . Unreport Threat 2 | . 1 . . . 1 . . Locate Traps 2 | . 1 . . . 1 . . Patrol Navigation 1 | . . . . . . 1 . Derelict Proto ID Bank 1 | . . . 1 . . . . Fabricator Hacks . | . . . . . . . . Repair Station Hacks 2 | . . . . . 2 . . Scan Component 1 | . . . . . 1 . . Repair 1 | . . . . . 1 . . Recycling Unit Hacks . | . . . . . . . . Scanalyzer . | . . . . . . . . Garrison Access Hacks 1 | . . . . . 1 . . Unlock Access 1 | . . . . . 1 . . Unauthorized Hacks 14 | . 5 . . . 8 . 1 Terminals 14 | . 5 . . . 8 . 1 Track 1 | . . . . . 1 . . Assimilate 1 | . . . . . 1 . . Botnet 10 | . 5 . . . 4 . 1 Disrupt 1 | . . . . . 1 . . Operators 1 | . . . . . 1 . . Fabricators . | . . . . . . . . Repair Stations . | . . . . . . . . Recycling Units . | . . . . . . . . Scanalyzers . | . . . . . . . . Garrison Access . | . . . . . . . . Data Cores Recovered 2 | . 1 . . . 1 . . Used . | . . . . . . . . Hacking Detections 19 | . 8 . . . 8 2 1 Full Trace Events 1 | . . . . . . 1 . Feedback Events . | . . . . . . . . Feedback Blocked . | . . . . . . . . Robot Schematics Acquired 1 | . 1 . . . . . . Robots Built . | . . . . . . . . Authchips . | . . . . . . . . Time . | . . . . . . . . Total Robot Build Rating . | . . . . . . . . Part Schematics Acquired . | . . . . . . . . Parts Built . | . . . . . . . . Authchips . | . . . . . . . . Time . | . . . . . . . . Total Part Build Rating . | . . . . . . . . Parts Repaired 1 | . . . . . 1 . . Time 26 | . . . . . 26 . . Parts Recycled . | . . . . . . . . Recycled Matter . | . . . . . . . . Retrieved Matter . | . . . . . . . . Retrieved Components . | . . . . . . . . Parts Scanalyzed . | . . . . . . . . Part Schematics Acquired . | . . . . . . . . Parts Damaged . | . . . . . . . . Bothacking | -11 -10 -10 -10 -9 -8 -8 -8 ------------ Run | Yrd Mat Min Exi Min Mat Gar Mat Used RIF Installer 2 | . . . . . . 2 . Robot Detection 1 | . . . . . . 1 . Robots Hacked . | . . . . . . . . Non-combat . | . . . . . . . . Combat . | . . . . . . . . Robot Hacks Applied . | . . . . . . . . Relay Couplers Released 5 | . . . . . . 5 . Machine Destruction 5 | . . . . . . 5 . Fabnet Peak Effective % . | . . . . . . . . Robots Rewired 6 | . . . . . . 6 . Allies Hacked . | . . . . . . . . Hacks Repelled . | . . . . . . . . Allies | -11 -10 -10 -10 -9 -8 -8 -8 -------- Run | Yrd Mat Min Exi Min Mat Gar Mat Total Allies 6 | . . . . . . 6 . Largest Group 6 | . . . . . . 6 2 Highest-Rated Group 90 | . . . . . . 90 30 Highest-Rated Ally 15 | . . . . . . 15 15 Total Orders . | . . . . . . . . Ally Attacks 18 | . . . . . . 18 . Total Damage 294 | . . . . . . 294 . Kills 2 | . . . . . . 2 . Allies Corrupted . | . . . . . . . . Allies Melted . | . . . . . . . . Intel | -11 -10 -10 -10 -9 -8 -8 -8 ------- Run | Yrd Mat Min Exi Min Mat Gar Mat Robot Analysis Total 4 | . 3 . . . 1 . . Derelict Logs Recovered 1 | . . 1 . . . . . Drone Launches . | . . . . . . . . Drone Recoveries . | . . . . . . . . Exploration | -11 -10 -10 -10 -9 -8 -8 -8 ------------- Run | Yrd Mat Min Exi Min Mat Gar Mat Turns Passed 3996 | 80 790 313 268 148 1333 969 95 Spaces Moved 2799 | 60 672 251 288 110 869 490 59 Core 3 | 3 . . . . . . . Treads 879 | . . . . . 330 490 59 Legs 14 | . . . . . 14 . . Wheels 1903 | 57 672 251 288 110 525 . . Hover . | . . . . . . . . Flight . | . . . . . . . . Fastest Speed 50 | 50 90 90 90 105 101 158 158 Average Speed 117 | 87 90 91 91 119 130 158 158 Slowest Speed 260 | 90 90 100 105 120 260 158 158 Overloaded Moves . | . . . . . . . . Propulsion Burnouts . | . . . . . . . . Robots Hopped . | . . . . . . . . Cave-ins Triggered . | . . . . . . . . Exploration Rate (%) 45 | 4 91 60 68 20 64 51 8 Regions Visited 7 Branch Regions 3 Pre-discovered Areas 2 | . . 1 1 . . . . Known Exits Taken 2 | . 1 . . . 1 . . Unknown Exits Taken 4 | 1 . 1 1 1 . . . Scrap Searched . | . . . . . . . . Spaces Dug 3 | . . . . . 3 . . Terrain Destroyed 106 | . . 42 . . 64 . . Melee . | . . . . . . . . Projectile 64 | . . . . . 64 . . AOE 42 | . . 42 . . . . . Terrain Rammed . | . . . . . . . . Walls Destroyed . | . . . . . . . . Machines Disabled . | . . . . . . . . Actions | -11 -10 -10 -10 -9 -8 -8 -8 --------- Run | Yrd Mat Min Exi Min Mat Gar Mat Total 3371 | 80 772 292 293 124 1075 675 60 Wait 170 | 2 39 . . 4 64 61 . Move 2791 | 59 671 250 287 109 868 488 59 Hop . | . . . . . . . . Pick Up 42 | 9 4 . 1 4 18 6 . Fast Attach 29 | 6 4 2 . 1 12 4 . Attach 12 | 1 . 2 . . 9 . . Detach 8 | . . . . 1 7 . . Swap 16 | 1 3 2 1 1 6 1 1 Drop 37 | . 6 2 4 1 21 3 . Fire 185 | 2 45 34 . 3 70 31 . Melee . | . . . . . . . . Ram . | . . . . . . . . Kick . | . . . . . . . . Crush . | . . . . . . . . Escape Stasis . | . . . . . . . . Rewire 81 | . . . . . . 81 . Trap . | . . . . . . . . Miscellaneous . | . . . . . . . . Route ------- -11/Scrapyard -10/Materials (discovered 5 exits: [*Mat x3] / *Min x2) -10/Mines (discovered 3 exits: [*Mat x2] / *Exi) -10/Exiles -9/Mines -8/Materials (discovered 3 exits: [*Fac x2] / Gar) -8/Garrison -8/Materials History --------- Turn | Location | Event 8 | -11/Scrapyard | Discovered new exit (range 16) 81 | -11/Scrapyard | Entered Materials 305 | -10/Materials | Build established: Mutant 315 | -10/Materials | Discovered new exit (range 15) 530 | -10/Materials | Discovered new exit (range 8) 600 | -10/Materials | Identified exit to Mines 602 | -10/Materials | Discovered new exit (range 16) 787 | -10/Materials | Discovered new exit (range 3) 871 | -10/Materials | Entered Mines 906 | -10/Mines | Discovered new exit (range 9) 937 | -10/Mines | Met a Derelict bent on vengeance 945 | -10/Mines | Learned location of Zion (-7) 945 | -10/Mines | Discovered new exit (range 9) 1180 | -10/Mines | Deemed a non-threat by the Exiles lab entrance 1180 | -10/Mines | Discovered new exit (range 5) 1184 | -10/Mines | Entered Exiles 1207 | -10/Exiles | Met 8R-AWN 1221 | -10/Exiles | Met EX-HEX 1250 | -10/Exiles | Met EX-BIN 1262 | -10/Exiles | Aligned with FarCom system 1263 | -10/Exiles | Given EX-Vault access code 1284 | -10/Exiles | Opened EX-Vault 1291 | -10/Exiles | Found XL Autogun Array 1309 | -10/Exiles | Warned to stay clear of 0b10 Research branches 1340 | -10/Exiles | Met EX-DEC 1436 | -10/Exiles | Discovered new exit (range 14) 1452 | -10/Exiles | Left Exiles lab with XL Autogun Array 1452 | -10/Exiles | Entered Mines 1456 | -9/Mines | Met a Derelict shopkeep closing up shop 1587 | -9/Mines | Discovered new exit (range 12) 1600 | -9/Mines | Entered Materials 1600 | -8/Materials | Evolved 4 slots: Propulsion x1, Utility x1, Weapon x2 1819 | -8/Materials | Central database locked down 2095 | -8/Materials | Repaired Grenade Launcher? 2241 | -8/Materials | Discovered new exit (range 16) 2311 | -8/Materials | Build established: Scavenger-Skirmisher 2634 | -8/Materials | Destroyed 8 combat bots 2675 | -8/Materials | Discovered new exit (range 15) 2731 | -8/Materials | Build established: Skirmisher 2876 | -8/Materials | Identified exit to Garrison 2933 | -8/Materials | Entered Garrison 2981 | -8/Garrison | Triggered checkpoint 3047 | -8/Garrison | Triggered checkpoint 3142 | -8/Garrison | Installed Relay Interface Framework 3228 | -8/Garrison | Destroyed 7 combat bots 3231 | -8/Garrison | Triggered checkpoint 3307 | -8/Garrison | Expanded RIF knowledge: Robot Detection 3382 | -8/Garrison | Garrison Relay disabled 3549 | -8/Garrison | Triggered checkpoint 3591 | -8/Garrison | Triggered checkpoint 3605 | -8/Garrison | Triggered checkpoint 3756 | -8/Garrison | Lost 3 allies 3789 | -8/Garrison | Discovered new exit (range 14) 3902 | -8/Garrison | Entered Materials 3902 | -8/Materials | Accompanied by 2 allies 3997 | -8/Materials | Self-destructed Last Messages --------------- 03879_ An alarm sounds. 03900_ Attempting to access garrison exit controls... RIF authorized. LOCATION=UNKNOWN GOAL=ESCAPE Referencing patrol navigation protocols. 03902_ Receiving FarCom transmissions... 03960_ T-07 Excavator is excavating. 03970_ U-05 Engineer lays Concrete. 03972_ T-07 Excavator is excavating. 03997_ Connecting with Terminal... 03997_ Current location identified: Materials >>Trojan(Botnet) Trojan loaded successfully. Testing... Terminal linked with 0 systems. Awaiting botnet instructions. >>Access(Branch) No branch access points found. Map ----- +----------------------------------------------------+ | ?????????????????????????????????????????????????? | | ?????????????????????????????????????????????????? | | ?????????????????????????????????????????????????? | | ?????????????????????????????????????????????????? | | ?????????????????????????????????????????????????? | | ?????????????????????????????????????????????????? | | ?????????????????????????????????????????????????? | | ?????????????????????????????????????????????????? | | ?????????????????????????????????????????????????? | | ?????????????????????????????????????????????????? | | ?????????????????????????????????????????????????? | | ?????????????????????????????????????????????????? | | ????????????????????#?????#??????????????????????? | | ???????????????#?????????????#???????????????????? | | ? ? #?????#???????? ???????????????????????????? | | ?? #?#????????? ??? ??????????????????????????? | | ?? ##?#??#?#? ? ? ????? ???#??? ????????????? | | ??# #?? ? ?????? ?? ?? ??Y??? ?????Y???????????? | | ? # # ?? ?# ??????????? ?????????????????? | | ??# # ??? ??? ???? ? ??????#?????????????????? | | ??# #??? ?? ? ?? ?#???????????????????????? | | "?# # ??? ?# ???? ??????#? ? ?????#??????????? | | ??# +????? ????##?##??#???#???? ???????????????? | | ??# #? ??? ????#########+#????????????????????? | | ??# #? ????? #??# "T" # ??????????"????????? | | ??# #???? ? #??# @ #??? ??#?????????????? | | ??# #????######## """ !#? ???? ????????????? | | ### ####### # """"" #??????#?????????????? | | # """"" !###????? ????????????? | | + """""Y ##????#?? #??????????? | | # """Y ##??#?#?#??#?????????? | | ####+######## # ! #?????#??????????????? | | #?#?### ##############?###?????#?????????? | | """ ###?? ?#????##???##?????#?#???????????? | | """ #???# #########??#?#????#???????????????? | | """ #???#####??#?##??#??????#???????#????????? | | ##?#?#??##??????#??#???????#?????????????? | | """ ! #????#??#?##??#???????????#?##???????????? | | """ #?##????##????????????#?#????????????????? | | """ ##???#?#??##????????###??????????????????? | | ###??#??##?###?#?????#???????????????????? | | #########?##??#??#??????#????????????????????????? | | ???????##????????#???????????????????????????????? | | | | | | | | | | | | | | | +----------------------------------------------------+ Best States ------------- Heat Dissipation 50 Coolant Potential 65 Energy Generation 16 Energy Capacity 290 Matter Stores 300 Matter Capacity 300 Sight Range 16 Terrain Scan Range 16 Terrain Scan Density 110 Evasion (%) 42 Recoil Reduction 3 Offensive Hacking 10 Item Schematics ----------------- None Robot Schematics ------------------ O-16 Technician | -10/Materials | Hacked Fabricated ------------ Nothing Alien Tech Used ----------------- None Achievements -------------- None Challenges ------------ None Game ------ Seed MediumRiotBank Manual? 0 Play Time 00:48:00 Cumulative 70.0 hours Start 2024.08.06 @ 14:22:24 End 2024.10.31 @ 22:43:13 Sessions 5 Manual Loads 0 Difficulty Rogue Special Mode None Game No. 147 Rogue 147 Adventurer 0 Explorer 0 Win Type - Total 0 Types 0/0/0/0/0/0/0/0/0 Lore% 26 Gallery% 42 Achievement% 38 Wizard Run 0 Options --------- Layout 1 ASCII 0 Keyboard 0 Movement Numpad Keybinds 0 Fullscreen 2 Font 32/SmallcapsGlow Map View 50x35 Zoom Use 0% Tactical HUD 1 Map Filters NONE Filters NONE Steam 1 RUN: dadd8a6d-c735-4507-830d-fe74385c60b6